[Event "10th Cesme Open-A 2024"]
[Site "Cesme"]
[Date "2024.06.27"]
[Round "5"]
[White "Kilic, Eray"]
[Black "Ozkan, Ervin"]
[Result "1-0"]
[ECO "C55"]
[WhiteElo "2443"]
[BlackElo "2147"]
[Annotator "RC"]
[PlyCount "65"]
[EventDate "2024.06.23"]
[EventType "swiss"]
[EventCountry "TUR"]
[SourceTitle "playchess.com"]
[Source "ChessBase"]
[SourceQuality "1"]
[TimeControl "5400+30"]

1. e4 {[%emt 0:01:00]} e5 {[%emt 0:02:00]} 2. Bc4 {[%emt 0:00:00]} Nf6 {[%emt 0:00:30]} 3. d3 {[%emt 0:00:00]} Nc6 {[%emt 0:01:30]} 4. Nf3 {[%emt 0:00:00]} h6 {[%emt 0:01:30]} 5. O-O {[%emt 0:02:00]} d6 {[%emt 0:00:30]} 6. a4 {[%emt 0:00:00]} g6 {[%emt 0:00:30]} 7. Nc3 {[%emt 0:01:00]} Bg7 {[%emt 0:00:30]} 8. a5 {[%emt 0:00:00]} a6 {[%emt 0:02:30]} 9. Re1 {[%emt 0:00:00]} O-O {[%emt 0:01:30]} 10. h3 {[%emt 0:01:30]} Re8 {[%emt 0:08:30]} 11. Be3 {[%emt 0:01:30]} Be6 {[%emt 0:02:30]} 12. Bxe6 {[%emt 0:01:30]} Rxe6 {[%emt 0:00:30]} 13. Qd2 {[%emt 0:00:00]} Kh7 {[%emt 0:03:30]} 14. Nd5 {[%emt 0:03:00]} Qd7 {[%emt 0:16:30]} 15. c4 {[%emt 0:10:30]} Ng8 {[%emt 0:05:30]} 16. b4 {[%emt 0:04:30]} Rf8 {[%emt 0:09:30]} 17. b5 {[%emt 0:02:30]} Nb8 {[%emt 0:11:30]} 18. Rab1 {[%emt 0:06:30]} c6 {[%emt 0:03:30]} 19. Nc3 {[%emt 0:00:30]} axb5 {[%emt 0:07:30]} 20. cxb5 {[%emt 0:00:30]} c5 {[%emt 0:00:30]} 21. Qa2 {[%emt 0:00:30]} f5 {[%emt 0:01:10]} 22. a6 {[%emt 0:00:30]} bxa6 {[%emt 0:02:28]} 23. bxa6 {[%emt 0:00:30]} Nc6 {[%emt 0:01:12]} 24. Rb7 {[%emt 0:01:30]} Qc8 {[%emt 0:00:30]} 25. Nd5 {[%emt 0:00:00]} fxe4 {[%emt 0:03:58]} 26. dxe4 {[%emt 0:02:00]} Re7 {[%emt 0:08:13]} 27. Nxe7 {[%emt 0:00:30]} Ngxe7 {[%emt 0:00:13]} 28. Reb1 {[%emt 0:00:30]} Qa8 {[%emt 0:03:21]} 29. R1b6 {[%emt 0:00:30]} Rb8 {[%emt 0:02:06]} 30. Qf7 {[%emt 0:01:30]} Rf8 {[%emt 0:01:13]} 31. Qe6 {[%emt 0:00:30]} Re8 {[%emt 0:00:34]} 32. Qxd6 {[%emt 0:00:30]} Rd8 {[%emt 0:00:54]} 33. Qxc5 {[%emt 0:00:00]} 1-0

[Event "10th Cesme Open-A 2024"]
[Site "Cesme"]
[Date "2024.06.27"]
[Round "5"]
[White "Ozsakallioglu, Okan"]
[Black "Barrish, Daniel"]
[Result "1/2-1/2"]
[ECO "B10"]
[WhiteElo "2402"]
[BlackElo "2256"]
[Annotator "RC"]
[PlyCount "65"]
[EventDate "2024.06.23"]
[EventType "swiss"]
[EventCountry "TUR"]
[SourceTitle "playchess.com"]
[Source "ChessBase"]
[SourceQuality "1"]
[TimeControl "5400+30"]

1. e4 {[%emt 0:05:00]} c6 {[%emt 0:02:00]} 2. Nf3 {[%emt 0:03:30]} d5 {[%emt 0:00:30]} 3. d3 {[%emt 0:00:30]} dxe4 {[%emt 0:00:30]} 4. dxe4 {[%emt 0:00:30]} Qxd1+ {[%emt 0:00:00]} 5. Kxd1 {[%emt 0:00:00]} Nf6 {[%emt 0:00:00]} 6. Nbd2 {[%emt 0:00:00]} g6 {[%emt 0:00:30]} 7. Ne5 {[%emt 0:00:00]} Bh6 {[%emt 0:06:30]} 8. f3 {[%emt 0:02:00]} Nbd7 {[%emt 0:01:30]} 9. Nd3 {[%emt 0:01:30]} O-O {[%emt 0:06:30]} 10. a4 {[%emt 0:06:30]} a5 {[%emt 0:01:30]} 11. Nc4 {[%emt 0:07:30]} Bxc1 {[%emt 0:00:30]} 12. Kxc1 {[%emt 0:00:00]} b6 {[%emt 0:02:30]} 13. Nde5 {[%emt 0:06:00]} Bb7 {[%emt 0:12:30]} 14. Be2 {[%emt 0:06:30]} Nxe5 {[%emt 0:09:30]} 15. Nxe5 {[%emt 0:00:30]} Rfd8 {[%emt 0:00:30]} 16. Ra3 {[%emt 0:00:30]} Nd7 {[%emt 0:03:30]} 17. Nxd7 {[%emt 0:01:30]} Rxd7 {[%emt 0:00:30]} 18. Rb3 {[%emt 0:00:00]} Ba6 {[%emt 0:00:30]} 19. Bxa6 {[%emt 0:00:00]} Rxa6 {[%emt 0:00:30]} 20. Rd1 {[%emt 0:00:00]} Rxd1+ {[%emt 0:07:30]} 21. Kxd1 {[%emt 0:00:00]} Kf8 {[%emt 0:00:30]} 22. f4 {[%emt 0:04:30]} h5 {[%emt 0:03:30]} 23. Ke2 {[%emt 0:07:30]} Ke8 {[%emt 0:06:30]} 24. f5 {[%emt 0:02:30]} Kd7 {[%emt 0:01:30]} 25. fxg6 {[%emt 0:00:30]} fxg6 {[%emt 0:00:00]} 26. Kd2 {[%emt 0:08:30]} g5 {[%emt 0:05:00]} 27. Rg3 {[%emt 0:08:30]} g4 {[%emt 0:01:30]} 28. h3 {[%emt 0:03:30]} gxh3 {[%emt 0:06:30]} 29. Rxh3 {[%emt 0:03:30]} Ra8 {[%emt 0:00:30]} 30. Rxh5 {[%emt 0:00:30]} Rg8 {[%emt 0:00:00]} 31. Rh2 {[%emt 0:00:30]} Kd6 {[%emt 0:01:00]} 32. Ke3 {[%emt 0:01:30]} e6 {[%emt 0:02:30]} 33. b3 {[%emt 0:00:30]} 1/2-1/2

[Event "10th Cesme Open-A 2024"]
[Site "Cesme"]
[Date "2024.06.27"]
[Round "5"]
[White "Pacher, Milan"]
[Black "Ozcan, Kaan"]
[Result "1-0"]
[ECO "C43"]
[WhiteElo "2387"]
[BlackElo "2227"]
[Annotator "RC"]
[PlyCount "85"]
[EventDate "2024.06.23"]
[EventType "swiss"]
[EventCountry "TUR"]
[SourceTitle "playchess.com"]
[Source "ChessBase"]
[SourceQuality "1"]
[TimeControl "5400+30"]

1. e4 {[%emt 0:01:00]} e5 {[%emt 0:01:00]} 2. Nf3 {[%emt 0:00:00]} Nf6 {[%emt 0:00:00]} 3. d4 {[%emt 0:00:00]} Nxe4 {[%emt 0:00:00]} 4. Bd3 {[%emt 0:00:30]} d5 {[%emt 0:00:30]} 5. Nxe5 {[%emt 0:00:00]} Nd7 {[%emt 0:00:30]} 6. Nc3 {[%emt 0:00:00]} Nxc3 {[%emt 0:02:30]} 7. bxc3 {[%emt 0:00:30]} Bd6 {[%emt 0:00:30]} 8. O-O {[%emt 0:00:30]} O-O {[%emt 0:10:30]} 9. Re1 {[%emt 0:02:30]} c6 {[%emt 0:08:30]} 10. Rb1 {[%emt 0:03:30]} Qc7 {[%emt 0:04:30]} 11. Bf4 {[%emt 0:09:30]} b5 {[%emt 0:08:30]} 12. Qh5 {[%emt 0:01:30]} f5 {[%emt 0:06:30]} 13. Qh3 {[%emt 0:07:30]} Nxe5 {[%emt 0:02:30]} 14. Bxe5 {[%emt 0:02:30]} Bxe5 {[%emt 0:01:30]} 15. Rxe5 {[%emt 0:00:00]} Qa5 {[%emt 0:07:30]} 16. Re7 {[%emt 0:01:00]} Qxc3 {[%emt 0:08:30]} 17. Qe3 {[%emt 0:00:30]} c5 {[%emt 0:06:30]} 18. Qe5 {[%emt 0:05:30]} Qxd4 {[%emt 0:01:30]} 19. Rxg7+ {[%emt 0:00:30]} Kh8 {[%emt 0:01:30]} 20. Qxd4 {[%emt 0:00:30]} cxd4 {[%emt 0:00:30]} 21. Rc7 {[%emt 0:00:00]} Be6 {[%emt 0:02:30]} 22. Rxb5 {[%emt 0:00:00]} Rab8 {[%emt 0:06:14]} 23. Rxa7 {[%emt 0:02:30]} Rxb5 {[%emt 0:03:54]} 24. Bxb5 {[%emt 0:00:30]} Rb8 {[%emt 0:01:54]} 25. a4 {[%emt 0:00:00]} d3 {[%emt 0:01:14]} 26. cxd3 {[%emt 0:00:00]} d4 {[%emt 0:00:00]} 27. Re7 {[%emt 0:01:30]} Bg8 {[%emt 0:01:28]} 28. Re8 {[%emt 0:01:30]} Rb7 {[%emt 0:01:00]} 29. h4 {[%emt 0:00:30]} Kg7 {[%emt 0:00:32]} 30. Rd8 {[%emt 0:00:30]} Be6 {[%emt 0:01:13]} 31. Rxd4 {[%emt 0:00:30]} Kf6 {[%emt 0:00:00]} 32. g3 {[%emt 0:00:00]} Rc7 {[%emt 0:01:54]} 33. Bc4 {[%emt 0:01:00]} Ke5 {[%emt 0:00:58]} 34. Rf4 {[%emt 0:00:30]} Bd7 {[%emt 0:00:00]} 35. a5 {[%emt 0:00:00]} Rb7 {[%emt 0:01:18]} 36. a6 {[%emt 0:00:00]} Rb1+ {[%emt 0:00:31]} 37. Kh2 {[%emt 0:00:30]} Ra1 {[%emt 0:01:08]} 38. d4+ {[%emt 0:02:30]} Kd6 {[%emt 0:00:30]} 39. Bd3 {[%emt 0:00:00]} Bc6 {[%emt 0:01:09]} 40. f3 {[%emt 0:00:00]} Ra2+ {[%emt 0:03:40]} 41. Kh3 {[%emt 0:00:00]} h5 {[%emt 0:01:03]} 42. Bc4 {[%emt 0:02:00]} Bd7 {[%emt 0:01:52]} 43. Bxa2 {[%emt 0:00:30]} 1-0

[Event "10th Cesme Open-A 2024"]
[Site "Cesme"]
[Date "2024.06.27"]
[Round "5"]
[White "Domalchuk-Jonasson, Aleksandr"]
[Black "Ince, Taylan Ruzgar"]
[Result "1-0"]
[ECO "A28"]
[WhiteElo "2380"]
[BlackElo "2243"]
[Annotator "RC"]
[PlyCount "82"]
[EventDate "2024.06.23"]
[EventType "swiss"]
[EventCountry "TUR"]
[SourceTitle "playchess.com"]
[Source "ChessBase"]
[SourceQuality "1"]
[TimeControl "5400+30"]

1. c4 {[%emt 0:01:00]} Nf6 {[%emt 0:03:00]} 2. Nc3 {[%emt 0:00:00]} e5 {[%emt 0:04:30]} 3. Nf3 {[%emt 0:00:00]} Nc6 {[%emt 0:00:30]} 4. e4 {[%emt 0:00:30]} Bc5 {[%emt 0:04:30]} 5. Nxe5 {[%emt 0:00:30]} Nxe5 {[%emt 0:00:30]} 6. d4 {[%emt 0:00:30]} Bb4 {[%emt 0:00:30]} 7. dxe5 {[%emt 0:00:30]} Nxe4 {[%emt 0:00:30]} 8. Qf3 {[%emt 0:00:00]} Nxc3 {[%emt 0:03:30]} 9. bxc3 {[%emt 0:00:00]} Bf8 {[%emt 0:04:30]} 10. Bd3 {[%emt 0:02:30]} d6 {[%emt 0:04:30]} 11. O-O {[%emt 0:00:30]} dxe5 {[%emt 0:04:30]} 12. Re1 {[%emt 0:00:30]} Be7 {[%emt 0:00:30]} 13. Qe4 {[%emt 0:26:30]} Qd6 {[%emt 0:10:30]} 14. Rb1 {[%emt 0:07:30]} c6 {[%emt 0:06:30]} 15. f4 {[%emt 0:01:30]} Be6 {[%emt 0:09:30]} 16. Rxb7 {[%emt 0:05:30]} Rd8 {[%emt 0:06:30]} 17. Bc2 {[%emt 0:04:30]} Qc5+ {[%emt 0:09:30]} 18. Be3 {[%emt 0:07:30]} Qxc4 {[%emt 0:00:00]} 19. Qxc4 {[%emt 0:07:30]} Bxc4 {[%emt 0:00:00]} 20. Bxa7 {[%emt 0:00:00]} Rd7 {[%emt 0:00:30]} 21. Rb8+ {[%emt 0:00:00]} Rd8 {[%emt 0:00:00]} 22. Rxd8+ {[%emt 0:09:30]} Kxd8 {[%emt 0:00:00]} 23. Bb6+ {[%emt 0:00:30]} Kc8 {[%emt 0:04:30]} 24. a4 {[%emt 0:07:41]} Bd8 {[%emt 0:02:30]} 25. Bxd8 {[%emt 0:00:34]} Rxd8 {[%emt 0:00:00]} 26. Rxe5 {[%emt 0:00:38]} Rd2 {[%emt 0:01:00]} 27. Be4 {[%emt 0:01:08]} Kd7 {[%emt 0:05:14]} 28. Rc5 {[%emt 0:03:11]} Bd5 {[%emt 0:00:30]} 29. Bxd5 {[%emt 0:00:30]} cxd5 {[%emt 0:00:00]} 30. a5 {[%emt 0:02:08]} Kd6 {[%emt 0:00:33]} 31. Rc8 {[%emt 0:01:14]} Ra2 {[%emt 0:01:42]} 32. Ra8 {[%emt 0:00:03]} Ke6 {[%emt 0:01:12]} 33. g4 {[%emt 0:05:03]} g5 {[%emt 0:12:51]} 34. Ra6+ {[%emt 0:05:44]} Ke7 {[%emt 0:00:30]} 35. fxg5 {[%emt 0:00:00]} Ra3 {[%emt 0:01:06]} 36. Rh6 {[%emt 0:00:13]} Rxa5 {[%emt 0:01:41]} 37. Rxh7 {[%emt 0:01:07]} d4 {[%emt 0:00:30]} 38. g6 {[%emt 0:00:09]} Rg5 {[%emt 0:00:33]} 39. Rxf7+ {[%emt 0:00:40]} Ke6 {[%emt 0:00:06]} 40. h3 {[%emt 0:02:22]} d3 {[%emt 0:00:54]} 41. Kf2 {[%emt 0:00:55]} Rc5 {[%emt 0:01:08]} 1-0

[Event "10th Cesme Open-A 2024"]
[Site "Cesme"]
[Date "2024.06.27"]
[Round "5"]
[White "Ebrahimi Herab, Hamidreza"]
[Black "Yermolinsky, Alex"]
[Result "1/2-1/2"]
[ECO "D41"]
[WhiteElo "2333"]
[BlackElo "2421"]
[Annotator "RC"]
[PlyCount "80"]
[EventDate "2024.06.23"]
[EventType "swiss"]
[EventCountry "TUR"]
[SourceTitle "playchess.com"]
[Source "ChessBase"]
[SourceQuality "1"]
[TimeControl "5400+30"]

1. d4 {[%emt 0:01:00]} Nf6 {[%emt 0:01:00]} 2. c4 {[%emt 0:00:30]} e6 {[%emt 0:00:30]} 3. Nc3 {[%emt 0:00:30]} d5 {[%emt 0:03:30]} 4. cxd5 {[%emt 0:01:30]} Nxd5 {[%emt 0:00:00]} 5. e4 {[%emt 0:00:30]} Nxc3 {[%emt 0:00:00]} 6. bxc3 {[%emt 0:00:30]} c5 {[%emt 0:00:30]} 7. Nf3 {[%emt 0:00:00]} cxd4 {[%emt 0:00:00]} 8. cxd4 {[%emt 0:00:00]} Bb4+ {[%emt 0:00:00]} 9. Bd2 {[%emt 0:00:30]} Bxd2+ {[%emt 0:00:30]} 10. Qxd2 {[%emt 0:00:30]} O-O {[%emt 0:00:00]} 11. Bc4 {[%emt 0:00:30]} Nd7 {[%emt 0:00:00]} 12. O-O {[%emt 0:00:30]} b6 {[%emt 0:00:30]} 13. Rad1 {[%emt 0:05:30]} Bb7 {[%emt 0:01:30]} 14. Rfe1 {[%emt 0:02:30]} Rc8 {[%emt 0:00:30]} 15. Bd3 {[%emt 0:00:30]} Nf6 {[%emt 0:05:30]} 16. Qf4 {[%emt 0:03:30]} Qc7 {[%emt 0:03:30]} 17. Qh4 {[%emt 0:07:30]} h6 {[%emt 0:00:30]} 18. e5 {[%emt 0:07:30]} Bxf3 {[%emt 0:03:30]} 19. gxf3 {[%emt 0:00:00]} Nd5 {[%emt 0:00:00]} 20. f4 {[%emt 0:07:00]} Qe7 {[%emt 0:03:00]} 21. Qg4 {[%emt 0:00:30]} Rc3 {[%emt 0:06:30]} 22. f5 {[%emt 0:17:30]} Qg5 {[%emt 0:00:30]} 23. Qxg5 {[%emt 0:00:30]} hxg5 {[%emt 0:00:30]} 24. Be4 {[%emt 0:00:00]} Rd8 {[%emt 0:03:30]} 25. fxe6 {[%emt 0:10:00]} fxe6 {[%emt 0:00:30]} 26. f3 {[%emt 0:00:00]} Nf4 {[%emt 0:06:30]} 27. Kf2 {[%emt 0:01:00]} Kf7 {[%emt 0:08:30]} 28. Kg3 {[%emt 0:09:30]} Rh8 {[%emt 0:01:30]} 29. Rd2 {[%emt 0:00:30]} Rh4 {[%emt 0:00:30]} 30. a4 {[%emt 0:07:32]} Nh5+ {[%emt 0:03:30]} 31. Kg2 {[%emt 0:02:07]} Nf4+ {[%emt 0:00:30]} 32. Kg3 {[%emt 0:00:35]} Nh5+ {[%emt 0:03:30]} 33. Kg2 {[%emt 0:00:07]} g4 {[%emt 0:06:30]} 34. fxg4 {[%emt 0:03:22]} Rxg4+ {[%emt 0:00:30]} 35. Kf1 {[%emt 0:01:13]} Nf4 {[%emt 0:01:30]} 36. a5 {[%emt 0:04:59]} Nh3 {[%emt 0:08:30]} 37. axb6 {[%emt 0:02:14]} axb6 {[%emt 0:00:30]} 38. Bg2 {[%emt 0:00:21]} Nf4 {[%emt 0:10:30]} 39. Be4 {[%emt 0:02:47]} Nh3 {[%emt 0:03:54]} 40. Bg2 {[%emt 0:00:05]} Nf4 {[%emt 0:03:25]} 1/2-1/2

[Event "10th Cesme Open-A 2024"]
[Site "Cesme"]
[Date "2024.06.27"]
[Round "5"]
[White "Yurtseven, Melih"]
[Black "Durak, Can"]
[Result "1/2-1/2"]
[ECO "E01"]
[WhiteElo "2333"]
[BlackElo "2442"]
[Annotator "TA"]
[PlyCount "30"]
[EventDate "2024.06.23"]
[EventType "swiss"]
[EventCountry "TUR"]
[SourceTitle "playchess.com"]
[Source "ChessBase"]
[SourceQuality "1"]
[TimeControl "5400+30"]

{[%evp 9,30,-7,0,-12,0,-38,-33,-24,-31,-29,-30,-33,-40,-31,-14,-8,-22,-28,-10,-8,-4,-16,-10]} 1. Nf3 {[%emt 0:08:00]} d5 {[%emt 0:05:00]} 2. d4 {[%emt 0:02:30]} Nf6 {[%emt 0:00:30]} 3. c4 {[%emt 0:00:00]} e6 {[%emt 0:00:30]} 4. g3 {[%emt 0:00:00]} dxc4 {[%emt 0:00:30]} 5. Qa4+ {[%emt 0:01:30]} Nbd7 {[%emt 0:01:30]} 6. Qxc4 {[%emt 0:01:30]} a6 {[%emt 0:01:30]} 7. Bf4 {[%emt 0:10:30]} c5 {[%emt 0:01:30]} 8. dxc5 {[%emt 0:04:30] Black is slightly better.} Bxc5 {[%emt 0:01:30] White must now prevent ...Qb6.} 9. Bg2 {[%emt 0:00:30]} b5 {[%emt 0:00:30]} 10. Qd3 {[%emt 0:00:00]} Bb7 {[%emt 0:01:30][%cal Oe6e5] [#] Hoping for ...e5!} 11. O-O {[%emt 0:00:00]} O-O {[%emt 0:00:30]} 12. Bd6 {[%emt 0:01:30]} Bxd6 {[%emt 0:05:30]} 13. Qxd6 {[%emt 0:00:30]} Rc8 {[%emt 0:02:30]} 14. a4 {[%emt 0:08:30]} bxa4 {[%emt 0:04:30]} 15. Nc3 {[%emt 0:15:30]} Nc5 {[%emt 0:02:30] Weighted Error Value: White=0.06 (flawless) /Black=0.02 (flawless) .  Inaccurate:     	White=1     	---        OK:         	White=3     	Black=7      Best:        	White=1     	---} 1/2-1/2

[Event "10th Cesme Open-A 2024"]
[Site "Cesme"]
[Date "2024.06.27"]
[Round "5"]
[White "Gunduz, Umut Erdem"]
[Black "Zakirov, Musa"]
[Result "0-1"]
[ECO "B96"]
[WhiteElo "2312"]
[BlackElo "2112"]
[Annotator "RC"]
[PlyCount "46"]
[EventDate "2024.06.23"]
[EventType "swiss"]
[EventCountry "TUR"]
[SourceTitle "playchess.com"]
[Source "ChessBase"]
[SourceQuality "1"]
[TimeControl "5400+30"]

1. e4 {[%emt 0:10:00]} c5 {[%emt 0:01:00]} 2. Nf3 {[%emt 0:00:30]} d6 {[%emt 0:00:30]} 3. d4 {[%emt 0:00:30]} cxd4 {[%emt 0:00:30]} 4. Nxd4 {[%emt 0:00:00]} Nf6 {[%emt 0:00:00]} 5. Nc3 {[%emt 0:00:00]} a6 {[%emt 0:00:00]} 6. Bg5 {[%emt 0:00:30]} e6 {[%emt 0:00:30]} 7. f4 {[%emt 0:00:00]} h6 {[%emt 0:08:30]} 8. Bh4 {[%emt 0:02:00]} Qb6 {[%emt 0:02:30]} 9. a3 {[%emt 0:00:30]} Nbd7 {[%emt 0:01:30]} 10. Bf2 {[%emt 0:00:30]} Qc7 {[%emt 0:00:00]} 11. Qf3 {[%emt 0:00:00]} b5 {[%emt 0:00:00]} 12. O-O-O {[%emt 0:07:00]} Bb7 {[%emt 0:00:30]} 13. g4 {[%emt 0:00:30]} Nc5 {[%emt 0:01:30]} 14. Re1 {[%emt 0:06:30]} Be7 {[%emt 0:02:30]} 15. h4 {[%emt 0:01:30]} d5 {[%emt 0:01:30]} 16. e5 {[%emt 0:11:30]} Nfe4 {[%emt 0:00:30]} 17. Nxe4 {[%emt 0:00:30]} Nxe4 {[%emt 0:00:00]} 18. Bg1 {[%emt 0:01:30]} Rc8 {[%emt 0:09:00]} 19. Rd1 {[%emt 0:15:30]} b4 {[%emt 0:06:30]} 20. axb4 {[%emt 0:03:30]} Bxb4 {[%emt 0:00:30]} 21. f5 {[%emt 0:01:30]} Qa5 {[%emt 0:05:30]} 22. Nb3 {[%emt 0:11:30]} Qa2 {[%emt 0:00:30]} 23. Bd4 {[%emt 0:09:14]} O-O {[%emt 0:05:30]} 0-1

[Event "10th Cesme Open-A 2024"]
[Site "Cesme"]
[Date "2024.06.27"]
[Round "5"]
[White "Taspinar, Yanki"]
[Black "Isgenderova, Hayale"]
[Result "1-0"]
[ECO "C07"]
[WhiteElo "2309"]
[BlackElo "2103"]
[Annotator "RC"]
[PlyCount "49"]
[EventDate "2024.06.23"]
[EventType "swiss"]
[EventCountry "TUR"]
[SourceTitle "playchess.com"]
[Source "ChessBase"]
[SourceQuality "1"]
[TimeControl "5400+30"]

1. e4 {[%emt 0:10:00]} e6 {[%emt 0:01:00]} 2. d4 {[%emt 0:00:30]} d5 {[%emt 0:00:00]} 3. Nd2 {[%emt 0:00:00]} c5 {[%emt 0:00:00]} 4. exd5 {[%emt 0:00:00]} Qxd5 {[%emt 0:00:30]} 5. Ngf3 {[%emt 0:00:30]} cxd4 {[%emt 0:00:00]} 6. Bc4 {[%emt 0:00:00]} Qd6 {[%emt 0:00:00]} 7. O-O {[%emt 0:00:00]} Nf6 {[%emt 0:00:30]} 8. Re1 {[%emt 0:00:00]} Nc6 {[%emt 0:00:00]} 9. Ne4 {[%emt 0:00:00]} Nxe4 {[%emt 0:05:00]} 10. Rxe4 {[%emt 0:00:00]} Qc5 {[%emt 0:00:30]} 11. b3 {[%emt 0:00:00]} b5 {[%emt 0:00:30]} 12. Bd3 {[%emt 0:14:30]} Be7 {[%emt 0:22:30]} 13. a4 {[%emt 0:26:30]} f5 {[%emt 0:03:30]} 14. Re1 {[%emt 0:10:30]} b4 {[%emt 0:04:30]} 15. Bg5 {[%emt 0:06:30]} O-O {[%emt 0:08:30]} 16. Bxe7 {[%emt 0:05:30]} Qxe7 {[%emt 0:06:30]} 17. Bb5 {[%emt 0:02:30]} Bb7 {[%emt 0:01:30]} 18. Rxe6 {[%emt 0:00:30]} Qc5 {[%emt 0:08:30]} 19. Bc4 {[%emt 0:02:30]} Kh8 {[%emt 0:00:30]} 20. Ng5 {[%emt 0:00:30]} g6 {[%emt 0:02:30]} 21. Qd3 {[%emt 0:05:40]} f4 {[%emt 0:09:30]} 22. Rxg6 {[%emt 0:02:50]} Rf5 {[%emt 0:00:30]} 23. Rh6 {[%emt 0:00:33]} Kg7 {[%emt 0:04:30]} 24. Rxh7+ {[%emt 0:03:05]} Kg6 {[%emt 0:00:30]} 25. Qh3 {[%emt 0:00:27]} 1-0

[Event "10th Cesme Open-A 2024"]
[Site "Cesme"]
[Date "2024.06.27"]
[Round "5"]
[White "Tarlabasi, Emirhan"]
[Black "Selbes, Tamer Tarik"]
[Result "1-0"]
[ECO "E11"]
[WhiteElo "2303"]
[BlackElo "2183"]
[Annotator "RC"]
[PlyCount "31"]
[EventDate "2024.06.23"]
[EventType "swiss"]
[EventCountry "TUR"]
[SourceTitle "playchess.com"]
[Source "ChessBase"]
[SourceQuality "1"]
[TimeControl "5400+30"]

1. d4 Nf6 2. c4 e6 3. Nf3 Bb4+ 4. Bd2 Qe7 5. a3 Bxd2+ 6. Nbxd2 d6 7. e4 e5 8. d5 a5 9. Bd3 Nbd7 10. Bc2 O-O 11. O-O g6 12. Ne1 Nh5 13. g3 Ndf6 14. Ng2 Bh3 15. Qe2 c6 16. Rae1 1-0

[Event "10th Cesme Open-A 2024"]
[Site "Cesme"]
[Date "2024.06.27"]
[Round "5"]
[White "Erten, Kerem"]
[Black "Demirbag, Alihan"]
[Result "1-0"]
[ECO "B40"]
[WhiteElo "2277"]
[BlackElo "2055"]
[Annotator "RC"]
[PlyCount "167"]
[EventDate "2024.06.23"]
[EventType "swiss"]
[EventCountry "TUR"]
[SourceTitle "playchess.com"]
[Source "ChessBase"]
[SourceQuality "1"]
[TimeControl "5400+30"]

1. e4 c5 2. Nf3 e6 3. b3 a6 4. Bb2 Nc6 5. c4 Nf6 6. e5 Ng4 7. g3 Qc7 8. Qe2 Be7 9. Bh3 Nh6 10. Nc3 O-O 11. Ne4 d5 12. exd6 Bxd6 13. O-O Nf5 14. Rfe1 Nfd4 15. Bxd4 cxd4 16. Nxd6 Qxd6 17. Qe4 e5 18. Bxc8 Raxc8 19. Qd5 Qxd5 20. cxd5 Nb4 21. Rxe5 d3 22. Re4 a5 23. Ne1 Rfd8 24. Rc4 g6 25. Rac1 Rb8 26. a3 Nxd5 27. Nxd3 Nf6 28. Ne5 Rxd2 29. Rc8+ Rxc8 30. Rxc8+ Kg7 31. Rc7 Ne4 32. Rxf7+ Kg8 33. Rxb7 Nxf2 34. Nc4 Nh3+ 35. Kh1 Ra2 36. Rd7 g5 37. g4 h5 38. Rd2 Ra1+ 39. Kg2 Rg1+ 40. Kf3 a4 41. bxa4 Rxg4 42. Nb6 Rg1 43. a5 g4+ 44. Ke4 Re1+ 45. Kd4 Ng5 46. Kc4 Rc1+ 47. Kb5 Ne6 48. Nd5 Rb1+ 49. Kc6 Nd8+ 50. Kc7 Nb7 51. a6 Nc5 52. a7 Rb7+ 53. Kc6 Rxa7 54. Kxc5 Rxa3 55. Nf6+ Kf7 56. Ne4 Ra5+ 57. Kd4 Kg6 58. Rf2 Ra4+ 59. Ke5 Ra5+ 60. Kd4 Ra4+ 61. Ke3 Ra3+ 62. Kf4 Ra5 63. Kg3 Ra3+ 64. Kf4 Ra5 65. Rb2 Rf5+ 66. Kg3 Rf3+ 67. Kg2 Re3 68. Rb6+ Kg7 69. Re6 Re2+ 70. Kg1 Re3 71. Re5 Kg6 72. Re7 {[%emt 2:05:23]} Re2 {[%emt 2:05:10]} 73. Re8 {[%emt 0:00:30]} Re3 {[%emt 0:00:30]} 74. Re5 {[%emt 0:00:30]} Re2 {[%emt 0:00:30]} 75. Re6+ {[%emt 0:00:30]} Kg7 {[%emt 0:00:30]} 76. Kh1 {[%emt 0:00:30]} Re1+ {[%emt 0:00:30]} 77. Kg2 {[%emt 0:00:30]} Re2+ {[%emt 0:00:30]} 78. Kg3 {[%emt 0:00:30]} Re3+ {[%emt 0:00:00]} 79. Kf4 {[%emt 0:00:00]} Rh3 {[%emt 0:01:03]} 80. Kg5 {[%emt 0:00:00]} Rxh2 {[%emt 0:00:37]} 81. Nd6 {[%emt 0:00:05]} g3 {[%emt 0:00:46]} 82. Re7+ {[%emt 0:01:45]} Kf8 {[%emt 0:00:23]} 83. Re1 {[%emt 0:00:44]} h4 {[%emt 0:00:52]} 84. Kg6 {[%emt 0:00:21]} 1-0